bitfinex-derivatives/quotes_ETHF0:USTF0_20250926
["timestamp","ask_amount","ask_price","bid_price","bid_amount"]
[1758903954205,0.3814,3991.2,3991.1,3.6107]
[1758903954404,0.38384682,3991.2,3991.1,3.61308264]
[1758903954908,0.00244682,3991.2,3991.1,3.61308264]
[1758903956912,0.38384682,3991.2,3991.1,3.61308264]
[1758903957109,0.38384682,3991.2,3991.1,3.21018264]
[1758903958405,0.00244682,3991.2,3991.1,3.21018264]
[1758903958611,0.00244682,3991.2,3991.1,4.06380264]
[1758903959107,0.38384682,3991.2,3991.1,3.66090264]
[1758903959310,0.38384682,3991.2,3991.1,4.06380264]
[1758903959805,0.00244682,3991.2,3991.1,4.06380264]
[1758903960404,0.3814,3992.2,3991.2,1.12679]
[1758903960710,0.83206,3991.7,3991.1,3.61308264]
[1758903960909,0.1535,3992.0,3991.1,3.21018264]
[1758903960910,0.1535,3991.5,3991.1,3.21018264]
[1758903961107,0.1535,3991.5,3991.1,3.61308264]
[1758903961415,0.6454,3991.4,3991.1,3.66090264]
[1758903961611,0.6454,3991.4,3991.2,0.4029]
[1758903961612,0.264,3991.3,3991.2,0.4029]
[1758903961908,0.83211,3991.2,3991.1,0.00238264]
[1758903962110,4.03991,3991.2,3991.1,0.00238264]
[1758903962417,0.83215,3990.9,3990.3,0.4029]
[1758903962613,0.264,3990.8,3990.5,0.1491]
[1758903962815,0.264,3990.8,3990.6,0.4029]
[1758903963008,0.264,3990.8,3990.1,3.65863]
[1758903963009,0.4508,3990.5,3990.1,3.6107]
[1758903963210,0.3814,3990.2,3990.1,3.61379444]
[1758903963418,1.09622,3990.2,3990.1,0.00309444]
[1758903963609,6.09622,3990.2,3990.1,0.00309444]
[1758903963908,5.83222,3990.2,3990.1,0.00309444]
[1758903964417,6.09622,3990.2,3990.1,0.00309444]
[1758903964614,5.83222,3990.2,3990.1,0.00309444]
[1758903964915,0.3814,3990.2,3990.1,0.00309444]
[1758903965111,0.3814,3990.4,3990.1,0.00309444]
[1758903965313,0.264,3990.3,3990.1,0.00309444]
[1758903965511,0.3814,3990.2,3990.1,0.40599444]
[1758903965810,0.3785,3990.2,3990.1,0.00309444]
[1758903966017,0.1582,3989.5,3989.3,3.1811]
[1758903966213,0.3785,3989.4,3989.3,3.1811]
[1758903966808,0.3785,3989.9,3989.6,0.45089]
[1758903967110,0.264,3989.8,3989.6,0.45402648]
[1758903967505,0.264,3989.9,3989.7,0.45088]
[1758903967709,0.264,3989.9,3989.6,0.00313648]
[1758903968217,0.3785,3989.8,3989.7,3.2078]
[1758903969115,0.3785,3989.8,3989.6,0.00313648]
[1758903969310,0.264,3989.9,3989.6,0.00313648]
[1758903969711,0.3785,3989.8,3989.6,0.00313648]
[1758903970117,0.71486,3989.9,3989.6,0.00313648]
[1758903970420,0.82938,3989.7,3989.6,0.00313648]
[1758903970814,0.82938,3989.7,3988.9,3.2078]
[1758903970815,5.82938,3989.7,3988.9,3.2078]
[1758903971021,0.3785,3988.9,3988.5,3.2078]
[1758903971221,0.3785,3988.7,3988.5,3.2078]
[1758903971520,0.3785,3988.6,3988.5,3.2078]
[1758903971920,0.38171172,3988.6,3988.5,3.21009348]
[1758903972328,0.64571172,3988.6,3988.5,3.21009348]
[1758903972514,1.09671172,3988.6,3988.5,3.21009348]
[1758903972709,0.83271172,3988.6,3988.5,3.21009348]
[1758903973021,0.83271172,3988.6,3987.7,0.2331]
[1758903973022,0.3785,3988.1,3987.7,1.98172582]
[1758903973217,0.3785,3987.9,3987.7,1.98172582]
[1758903973410,0.1582,3988.0,3987.7,1.98172582]
[1758903973616,0.3785,3987.9,3987.7,1.98172582]
[1758903973815,0.1582,3988.0,3987.7,1.98172582]
[1758903974012,0.3785,3987.9,3987.7,1.98172582]
[1758903974212,0.6513669,3988.8,3988.0,0.45107]
[1758903974419,0.3785,3988.4,3988.2,0.68415]
[1758903974621,0.264,3988.3,3988.2,0.68415]
[1758903974917,0.264,3988.3,3988.0,0.00255603]
[1758903975117,0.3785,3988.2,3988.0,0.00255603]
[1758903975628,3.21101172,3988.6,3988.1,0.45106]
[1758903975918,0.264,3988.4,3988.0,0.00255603]
[1758903976313,0.3785,3988.3,3988.0,0.00255603]
[1758903977019,0.264,3988.4,3988.0,0.00255603]
[1758903977209,0.3785,3988.3,3988.0,0.45362603]
[1758903977415,0.3785,3988.3,3988.0,0.00255603]
[1758903978920,0.82954,3988.3,3988.0,0.00255603]
[1758903979121,0.4047,3988.1,3988.0,0.00255603]
[1758903979321,3.6125,3988.1,3988.0,0.00255603]
[1758903979520,8.6125,3988.1,3988.0,0.00255603]
[1758903980220,0.4047,3987.4,3986.7,3.4489]
[1758903980423,0.264,3987.3,3986.7,3.2078]
[1758903980821,0.4047,3987.2,3986.9,0.4512]
[1758903981017,0.1602,3987.0,3986.7,3.2078]
[1758903981213,0.1602,3987.0,3986.7,3.20985813]
[1758903981415,0.1602,3987.0,3986.7,3.66107813]
[1758903981712,0.4047,3986.8,3986.7,3.20985813]
[1758903981911,0.4047,3986.8,3985.5,3.2078]
[1758903981912,4.06371,3986.8,3985.5,3.2078]
[1758903982217,0.1602,3986.0,3985.8,0.45132]
[1758903982521,8.3690199,3986.8,3985.9,3.2078]
[1758903982722,0.264,3986.7,3986.0,0.2411]
[1758903982918,0.264,3986.7,3986.0,0.6924]
[1758903982919,0.4047,3986.6,3986.0,0.6924]
[1758903983122,0.4047,3986.4,3986.0,0.00249171]
[1758903983323,0.4047,3986.1,3986.0,0.00249171]
[1758903983917,0.6687,3986.1,3986.0,0.24359171]
[1758903984122,0.6687,3986.1,3986.0,0.00249171]
[1758903984823,5.8299199,3986.1,3986.0,0.00249171]
[1758903985526,0.1602,3985.5,3985.0,3.2078]
[1758903985725,0.1602,3985.5,3984.7,0.2411]
[1758903985726,0.4047,3985.2,3984.7,0.2411]
[1758903985915,0.264,3985.4,3984.8,0.45144]
[1758903986119,0.264,3985.4,3984.7,0.2411]
[1758903986423,0.4047,3985.3,3985.0,3.65921]
[1758903986620,0.4047,3985.3,3985.1,0.4514]
[1758903987126,0.264,3985.3,3985.2,0.45139]
[1758903987320,0.4047,3985.2,3985.0,3.2078]
[1758903987520,0.4047,3985.2,3985.0,3.65922]
[1758903987726,0.4047,3985.2,3985.0,3.90032]
[1758903988024,0.4047,3985.2,3985.0,0.2411]
[1758903988226,0.71539,3985.3,3984.7,0.00193134]
[1758903988428,0.4047,3985.2,3984.7,0.00193134]
[1758903988622,0.8561,3985.2,3984.7,0.00193134]
[1758903988819,0.1602,3985.0,3984.7,0.00193134]
[1758903989019,0.4047,3984.8,3984.7,0.00193134]
[1758903991420,0.6687,3984.8,3984.7,0.00193134]
[1758903991615,0.4047,3984.8,3984.7,0.45338134]
[1758903991820,0.6687,3984.8,3984.7,3.66118134]
[1758903992027,0.1602,3985.0,3984.9,0.45143]
[1758903992028,0.5649,3985.0,3984.9,0.45143]
[1758903992329,0.8289,3985.0,3984.9,0.45143]
[1758903992530,0.4047,3984.9,3984.7,0.00193134]
[1758903992722,0.4047,3984.9,3984.7,3.20973134]
[1758903992924,0.4242,3985.0,3984.7,3.20973134]
[1758903993121,0.4047,3984.9,3984.8,0.45144]
[1758903993427,0.264,3985.0,3984.9,0.45143]
[1758903993629,0.40755825,3985.4,3984.9,1.12857]
[1758903993822,0.40755825,3985.4,3984.7,4.33835134]
[1758903993823,0.40755825,3985.4,3985.2,3.4489]
[1758903994026,0.00285825,3985.4,3985.3,0.69248]
[1758903994834,0.00285825,3985.4,3985.3,5.69248]
[1758903995728,0.40755825,3985.4,3985.2,3.2078]
[1758903995928,0.4047,3985.3,3985.2,3.65919]
[1758903996128,0.00285825,3985.4,3985.3,0.45138]
[1758903996332,0.40755825,3985.4,3985.3,0.45138]
[1758903997124,0.00285825,3985.4,3985.3,0.69248]
[1758904001434,0.1602,3986.0,3985.3,0.69248]
[1758904001435,0.4047,3986.1,3986.0,0.4513]
[1758904001635,0.4047,3986.1,3986.0,0.9621]
[1758904001941,0.4047,3986.1,3986.0,0.5108]
[1758904001942,0.9239,3986.1,3986.0,0.5108]
[1758904002135,0.9239,3986.1,3986.0,0.263]
[1758904002346,0.9239,3986.1,3986.0,0.7143]
[1758904002535,0.92663845,3986.1,3986.0,0.7143]
[1758904002838,0.92663845,3986.1,3986.0,0.263]
[1758904003026,0.92663845,3986.1,3985.7,0.45133]
[1758904003227,0.2517,3985.6,3985.4,3.2078]
[1758904003430,0.9239,3985.6,3985.5,0.263]
[1758904004335,1.0841,3985.5,3985.4,3.92217]
[1758904004841,1.0841,3985.5,3985.3,0.45138]
[1758904005141,1.0841,3985.5,3985.4,0.71437]
[1758904005342,1.0841,3985.5,3985.0,3.2078]
[1758904005537,0.8166,3985.5,3985.4,0.96217]
[1758904006941,1.13076,3985.5,3985.0,3.65921]
[1758904007131,0.9239,3985.3,3985.2,0.263]
[1758904007328,0.4047,3985.2,3985.0,3.2078]
[1758904007528,0.9239,3984.9,3984.8,0.263]
[1758904007739,0.6564,3984.8,3984.7,0.51273134]
[1758904007935,0.4047,3984.8,3984.7,1.20528134]
[1758904008136,0.9204,3985.4,3985.3,0.263]
[1758904008335,1.1879,3985.4,3985.3,0.263]
[1758904008731,0.6693,3985.4,3985.3,0.5108]
[1758904008934,0.3975,3985.3,3985.0,3.2078]
[1758904009239,0.9095,3985.1,3985.0,3.65922]
[1758904009444,0.9095,3985.1,3985.0,3.89922]
[1758904010335,0.9095,3985.1,3985.0,3.65922]
[1758904010938,0.9095,3985.1,3985.0,3.89922]
[1758904011141,0.6621,3985.1,3985.0,4.15422]
[1758904011741,0.6621,3985.1,3985.0,3.7028]
[1758904011938,0.6621,3985.1,3984.7,0.23163134]
[1758904011939,0.84894,3984.8,3984.7,0.00193134]
[1758904012139,0.6615,3984.8,3984.7,0.00193134]
[1758904012445,1.11294,3984.8,3984.7,0.00193134]
[1758904013446,6.11294,3984.8,3984.7,0.00193134]
[1758904014040,5.6615,3984.8,3984.7,0.00193134]
[1758904014249,0.6615,3984.8,3984.7,0.00193134]
[1758904014842,0.3975,3984.8,3984.7,0.00193134]
[1758904015046,1.11294,3984.8,3984.7,0.00193134]
[1758904015543,5.264,3984.8,3983.7,3.65935]
[1758904015847,0.5509,3984.0,3983.9,0.45154]
[1758904016238,0.1534,3984.0,3983.7,3.2078]
[1758904016537,0.1534,3984.0,3983.7,3.66247415]
[1758904016538,0.3975,3983.9,3983.7,3.66247415]
[1758904016745,0.5509,3984.0,3983.9,0.45154]
[1758904017542,0.3975,3983.9,3983.7,3.66246415]
[1758904017743,0.1534,3984.0,3983.8,0.45155]
[1758904017949,0.3975,3983.9,3983.7,0.00311415]
[1758904018148,0.1534,3984.0,3983.7,0.45467415]
[1758904018549,0.3975,3983.9,3983.8,0.45155]
[1758904018953,0.9095,3983.9,3983.7,0.00311415]
[1758904019146,0.3975,3983.8,3983.7,0.24311415]
[1758904019356,0.9095,3983.8,3983.7,0.00311415]
[1758904019850,1.36105,3983.8,3983.7,0.00311415]
[1758904020057,1.0629,3983.0,3982.9,3.47290765]
[1758904020346,0.2646,3983.4,3983.3,0.24]
[1758904020551,0.2646,3983.4,3983.3,0.495]
[1758904020552,0.9261,3983.4,3983.3,0.495]
[1758904020752,0.9261,3983.4,3983.3,0.94661]
[1758904020942,0.6621,3983.4,3983.3,4.15441]
[1758904021144,0.00249937,3983.4,3983.3,4.38641526]
[1758904022352,0.39999937,3983.4,3983.3,4.15671526]
[1758904022547,0.66459937,3983.4,3983.3,3.70510526]
[1758904022944,0.91199937,3983.4,3983.3,3.21010526]
[1758904023153,1.62759937,3983.4,3983.3,0.00230526]
[1758904023359,1.11559937,3983.4,3983.3,0.00230526]
[1758904023858,0.85159937,3983.4,3983.3,0.00230526]
[1758904024058,1.11559937,3983.4,3983.3,0.00230526]
[1758904024561,0.39999937,3983.4,3983.3,0.00230526]
[1758904024756,0.66399937,3983.4,3983.3,0.00230526]
[1758904024951,0.39999937,3983.4,3983.3,0.00230526]
[1758904025150,1.11559937,3983.4,3983.3,0.00230526]
[1758904025655,0.66399937,3983.4,3983.3,0.00230526]
[1758904026165,0.36219937,3983.4,3983.3,0.45391526]
[1758904026454,0.36219937,3983.4,3983.3,0.67571526]
[1758904026455,0.00249937,3983.4,3983.3,0.67571526]
[1758904026650,0.36219937,3983.4,3983.3,0.00230526]
[1758904027057,0.36219937,3983.4,3983.3,0.45391526]
[1758904027465,0.62619937,3983.4,3983.3,0.00230526]
[1758904027959,0.36219937,3983.4,3983.3,0.45391526]
[1758904028352,0.36219937,3983.4,3983.3,3.66171526]
[1758904029658,0.36219937,3983.4,3983.3,0.00230526]
[1758904030154,0.81379937,3983.4,3983.3,0.00230526]
[1758904030361,0.36219937,3983.4,3983.3,0.00230526]
[1758904030660,0.81379937,3983.4,3983.3,0.00230526]
[1758904032368,0.45164,3983.0,3982.9,0.02510765]
[1758904032566,0.7665,3983.0,3982.1,3.2078]
[1758904032757,0.45171,3982.4,3982.1,3.2078]
[1758904033062,0.264,3982.4,3982.1,3.2078]
[1758904033363,0.264,3982.4,3982.1,3.21098092]
[1758904033654,0.264,3982.4,3981.5,0.2241]
[1758904033655,0.3597,3981.4,3981.3,0.2241]
[1758904033862,0.3597,3981.9,3981.6,3.2078]
[1758904034162,0.6237,3981.8,3981.6,3.2078]
[1758904034361,0.3597,3981.7,3981.6,3.2078]
[1758904034560,0.3597,3981.7,3981.6,3.2107279]
[1758904035565,0.264,3981.9,3981.7,0.2241]
[1758904035863,0.6237,3981.9,3981.7,0.2241]
[1758904036064,0.3597,3981.8,3981.6,3.6625179]
[1758904036257,0.12162392,3982.4,3981.6,3.2107279]
[1758904036563,0.3597,3982.6,3982.3,3.2078]
[1758904036864,0.3597,3982.6,3982.4,0.2241]
[1758904037457,0.3597,3982.7,3982.6,0.45168]
[1758904037657,0.3597,3982.7,3982.4,0.6758]
[1758904037958,0.3597,3982.7,3982.5,0.67579]
[1758904038350,0.0251,3982.8,3982.3,3.2078]
[1758904038351,0.0251,3982.8,3982.7,0.67078]
[1758904038554,0.0251,3982.8,3982.7,3.87858]
[1758904039665,0.4055,3982.8,3982.7,3.2078]
[1758904039871,0.0251,3982.8,3982.7,3.2078]
[1758904040066,0.0251,3982.8,3982.7,8.4269]
[1758904040557,0.0251,3982.8,3982.7,8.6909]
[1758904042360,0.0251,3982.8,3982.7,3.6909]
[1758904042567,0.4055,3982.8,3982.7,3.4718]
[1758904043267,0.4055,3982.8,3982.7,3.2078]
[1758904043458,0.4055,3982.8,3982.7,3.65948]
[1758904044567,0.4055,3982.8,3982.7,3.2078]
[1758904044961,0.4055,3982.8,3982.7,3.65948]
[1758904045364,0.4055,3982.8,3982.7,3.2078]
[1758904046472,0.6494,3982.8,3982.7,3.90778]
[1758904046863,0.6494,3982.8,3982.7,3.4561]
[1758904046864,0.8871,3982.8,3982.7,3.4561]
[1758904047064,0.8871,3982.8,3982.7,3.2078]
[1758904047758,0.8871,3982.8,3982.7,3.65948]
[1758904047969,0.4055,3982.8,3982.7,4.15578]
[1758904048172,0.0251,3982.8,3982.7,4.37488]
[1758904048664,0.8871,3982.8,3982.7,0.4963]
[1758904049270,0.8871,3982.8,3982.7,0.94798]
[1758904049466,0.8871,3982.8,3982.7,0.4963]
[1758904050063,0.8871,3982.8,3982.3,3.2078]
[1758904050064,0.4005,3982.5,3982.4,0.70001]
[1758904050266,1.0186,3982.5,3982.4,0.2483]
[1758904050462,0.862,3982.4,3982.3,3.2078]
[1758904050868,0.862,3982.4,3982.3,3.90782]
[1758904051366,1.3628292,3982.4,3982.3,3.90782]
[1758904051571,1.3628292,3982.4,3982.3,3.65952]
[1758904051875,1.3628292,3982.4,3982.3,3.90782]
[1758904052167,0.1566,3982.0,3981.9,3.2078]
[1758904052369,0.7809,3982.0,3981.9,3.90787]
[1758904052574,1.28183978,3982.0,3981.9,3.90787]
[1758904053370,1.51953978,3982.0,3981.9,3.2078]
[1758904053867,1.78353978,3982.0,3981.6,0.0029279]
[1758904054169,0.862,3981.7,3981.6,0.7030279]
[1758904054372,1.36293978,3981.7,3981.6,0.7030279]
[1758904054768,1.36293978,3981.7,3981.6,0.2512279]
[1758904054967,1.36293978,3981.7,3981.6,0.4992279]
[1758904055369,1.12523978,3981.7,3981.6,0.4992279]
[1758904056173,1.36293978,3981.7,3981.6,0.2512279]
[1758904056372,1.36293978,3981.7,3981.6,0.0029279]
[1758904057764,1.81472978,3981.7,3981.6,0.0029279]
[1758904058277,1.0186,3981.0,3980.9,3.2078]
[1758904058577,0.1566,3980.5,3980.4,3.2078]
[1758904058765,1.30193978,3980.5,3980.4,3.2078]
[1758904058962,0.537,3981.0,3980.4,3.87884]
[1758904059167,0.88086484,3980.9,3980.8,3.87879]
[1758904059364,0.00263192,3981.0,3980.9,0.45188]
[1758904059569,0.00263192,3981.0,3980.9,0.67098]
[1758904059978,0.38303192,3981.0,3980.8,3.2078]
[1758904060178,0.3804,3980.9,3980.8,3.2078]
[1758904060372,0.3804,3980.9,3980.8,3.65969]
[1758904060571,0.3804,3980.9,3980.5,0.264]
[1758904060878,0.3804,3980.9,3980.5,0.71592]
[1758904061075,0.3804,3980.9,3980.4,3.42979029]
[1758904061281,0.3804,3980.9,3980.8,0.45189]
[1758904061576,0.88057935,3980.9,3980.8,0.45189]
[1758904061968,0.3804,3980.8,3980.4,3.42979029]
[1758904062168,0.3804,3980.9,3980.8,0.45189]
[1758904062369,0.88057816,3980.9,3980.8,0.45189]
[1758904062576,0.50017816,3980.9,3980.7,0.4519]
[1758904062779,0.3804,3980.9,3980.5,0.45193]
[1758904062979,0.3804,3980.9,3980.4,3.21069029]
[1758904063181,0.3804,3980.9,3980.6,0.45191]
[1758904063371,0.3804,3980.9,3980.4,3.66262029]
[1758904063572,0.18433192,3981.0,3980.4,3.21069029]
[1758904063773,0.4519,3980.7,3980.4,3.21069029]
[1758904063974,0.1566,3980.5,3980.4,3.21069029]
[1758904064172,1.0186,3980.5,3980.4,3.21069029]
[1758904064375,1.0186,3980.5,3980.4,0.49919029]
[1758904064376,1.5186355,3980.5,3980.4,0.49919029]
[1758904065274,1.2809355,3980.5,3980.4,0.49919029]
[1758904065473,0.3804,3980.5,3980.4,0.49919029]
[1758904065675,1.0186,3980.5,3980.4,0.49919029]
[1758904065980,1.0186,3980.5,3980.4,3.70699029]
[1758904066174,1.0186,3980.5,3980.4,0.49919029]
[1758904066876,0.537,3980.5,3980.4,0.49919029]
[1758904067072,0.7809,3980.5,3980.4,0.49919029]
[1758904067475,1.0186,3980.5,3980.4,0.25119029]
[1758904067676,1.0186,3980.5,3980.4,0.00289029]
[1758904067881,1.47053,3980.5,3980.4,0.00289029]
[1758904068076,7.16512476,3980.5,3980.4,0.00289029]
[1758904068275,1.51789895,3980.5,3980.4,0.25119029]
[1758904068481,1.51789895,3980.5,3980.4,0.49919029]
[1758904068682,1.51770035,3980.5,3980.4,0.49919029]
[1758904068881,0.7809,3980.5,3980.4,0.49919029]
[1758904069271,1.0148,3980.5,3980.4,0.25119029]
[1758904069478,1.0148,3980.5,3980.4,0.00289029]
[1758904069675,1.0148,3980.5,3980.4,0.25899029]
[1758904069872,1.0148,3980.5,3980.4,0.00289029]
[1758904070375,1.46673,3980.5,3980.4,0.00289029]
[1758904070779,1.96584806,3980.5,3980.4,0.00289029]
[1758904071082,1.46673,3980.5,3980.4,0.00289029]
[1758904073382,0.45197,3980.1,3979.6,3.2078]
[1758904073575,0.8289,3979.7,3979.6,3.4639]
[1758904073780,0.8289,3979.7,3979.6,4.16953]
[1758904074079,0.1536,3980.0,3979.6,4.37573]
[1758904074284,0.3603,3979.9,3979.8,0.5097]
[1758904074486,0.3603,3979.9,3979.8,0.96416314]
[1758904074678,0.6243,3980.2,3980.1,0.5097]
[1758904074989,0.3603,3980.2,3980.1,3.9237]
[1758904075292,0.8289,3980.2,3980.1,0.5097]
[1758904075586,0.8289,3980.2,3979.8,0.45446314]
[1758904075587,0.595,3979.9,3979.8,0.71056314]
[1758904075781,0.595,3979.9,3979.8,0.96416314]
[1758904075992,0.595,3979.9,3979.8,0.51216314]
[1758904076184,0.595,3979.9,3979.8,0.96416314]
[1758904076384,0.595,3979.9,3979.8,0.51216314]
[1758904077183,0.595,3979.9,3979.8,0.96416314]
[1758904077397,1.28084,3980.4,3980.3,0.5097]
[1758904077581,1.78057107,3980.4,3980.3,0.5097]
[1758904077781,1.28086,3980.2,3980.1,3.2078]
[1758904077981,0.8289,3980.2,3980.1,3.4639]
[1758904078178,0.8289,3980.2,3980.1,4.16947]
[1758904078387,0.96883,3980.5,3980.4,0.5097]
[1758904078586,1.93736095,3980.5,3980.4,0.2561]
[1758904078784,1.93736095,3980.5,3980.1,3.414]
[1758904078785,0.68666,3980.2,3980.1,3.4639]
[1758904078988,1.04696,3980.2,3980.1,3.4639]
[1758904079283,0.8289,3980.2,3980.1,3.4639]
[1758904080284,0.595,3980.2,3980.1,3.7175]
[1758904080482,1.09542051,3980.2,3980.1,4.16947]
[1758904080690,0.595,3980.2,3980.1,4.16947]
[1758904080890,0.595,3980.2,3980.1,3.7175]
[1758904081393,1.09556435,3980.2,3980.1,4.16947]
[1758904081587,1.09556435,3980.2,3980.1,3.7175]
[1758904081786,1.32946435,3980.2,3980.1,3.7175]
[1758904082493,1.32946435,3980.2,3980.1,4.16947]
[1758904082787,1.78142435,3980.2,3980.1,3.7175]
[1758904082987,1.32946435,3980.2,3980.1,0.2561]
[1758904083392,1.32946435,3980.2,3979.9,0.45199]
[1758904083590,0.595,3979.9,3979.8,0.71056314]
[1758904083986,0.8289,3979.9,3979.8,0.25856314]
[1758904084187,1.32968571,3979.9,3979.8,0.00246314]
[1758904084388,1.32968571,3979.9,3979.8,0.45446314]
[1758904084583,1.32968571,3979.9,3979.8,0.00246314]
[1758904084982,1.32968571,3979.9,3979.8,0.25856314]
[1758904085282,1.32968571,3979.9,3979.8,0.00246314]
[1758904085887,1.32968571,3979.9,3979.8,0.94866314]
[1758904086690,0.3532,3980.9,3980.8,0.45189]
[1758904086894,0.00263192,3981.0,3980.9,0.1989]
[1758904087192,0.00263192,3981.0,3980.9,0.6683]
[1758904087594,0.35583192,3981.0,3980.9,0.6683]
[1758904087896,0.35583192,3981.0,3980.9,0.4694]
[1758904088194,0.97643192,3981.0,3980.9,0.4694]
[1758904089297,0.50013192,3981.0,3980.9,0.4694]
[1758904090497,0.74253192,3981.0,3980.9,0.4694]
[1758904090898,0.00263192,3981.0,3980.9,5.6683]
[1758904092193,0.35583192,3981.0,3980.9,0.4694]
[1758904092404,0.00263192,3981.0,3980.9,0.6683]
[1758904093598,0.35583192,3981.0,3980.9,1.12018]
[1758904093993,0.00263192,3981.0,3980.9,1.12018]
[1758904094396,0.24503192,3981.0,3980.9,0.92128]
[1758904094697,0.80508,3980.9,3980.8,3.2078]
[1758904094892,1.28138,3980.9,3980.8,3.2078]
[1758904095300,1.28138,3980.9,3980.4,0.264]
[1758904095301,0.5956,3980.6,3980.5,0.92133]
[1758904095700,0.8295,3980.6,3980.5,0.92133]
[1758904096303,0.4975,3980.5,3980.4,3.4718]
[1758904096504,0.9738,3980.5,3980.4,3.2078]
[1758904096995,0.9738,3980.5,3980.4,3.65974]
[1758904097198,0.9738,3980.5,3980.4,3.89104]
[1758904097396,0.4975,3980.5,3980.4,4.12914]
[1758904097596,1.24043192,3981.0,3980.9,0.45188]
[1758904097899,0.88723192,3981.0,3980.8,0.45189]
[1758904098202,0.8295,3980.9,3980.8,0.92129]
[1758904098401,0.00263192,3981.0,3980.9,1.13488]
[1758904099498,0.00263192,3981.0,3980.9,1.39888]
[1758904100492,0.0251,3981.7,3981.6,0.4518]
[1758904100692,0.3804,3981.7,3981.6,0.9397]
[1758904100896,0.3553,3981.7,3981.6,0.9397]
[1758904101299,0.6032,3981.7,3981.6,0.9397]
[1758904101502,0.1515,3981.5,3981.3,3.2078]
[1758904101707,0.8437,3981.2,3981.1,0.95746]
[1758904102206,0.8437,3981.2,3981.1,0.69346]
[1758904102707,0.8437,3981.2,3981.1,0.45186]
[1758904102899,0.6399,3981.0,3980.9,3.2078]
[1758904103206,0.5068,3981.0,3980.9,3.2078]
[1758904103798,0.95867,3981.0,3980.9,3.2078]
[1758904103998,0.5068,3981.0,3980.9,3.2078]
[1758904104398,0.5068,3981.0,3980.9,3.65968]
[1758904105200,0.7708,3981.0,3980.9,3.65968]
[1758904105706,0.7708,3981.0,3980.9,3.2078]
[1758904106305,0.9952,3981.0,3980.9,3.2078]
[1758904106505,0.9952,3981.0,3980.9,3.90128]
[1758904107208,0.9952,3981.0,3980.9,3.4494]
[1758904107608,0.9952,3981.0,3980.9,3.2078]
[1758904109201,0.9952,3981.0,3980.9,3.6957]
[1758904109402,0.9952,3981.0,3980.9,3.2078]
[1758904109606,0.9952,3981.0,3980.2,0.1951]
[1758904109802,0.8437,3980.2,3980.1,3.90137]
[1758904110004,0.8437,3980.2,3980.1,3.2078]
[1758904110206,1.29566,3980.2,3980.1,3.2078]
[1758904110409,0.4884,3979.9,3979.8,0.24406314]
[1758904110710,0.8437,3979.9,3979.8,0.69607314]
[1758904111101,0.1515,3980.5,3980.1,0.4879]
[1758904111406,0.3553,3980.3,3980.2,0.93986]
[1758904111607,0.3553,3980.3,3980.2,0.4879]
[1758904111608,1.10450898,3980.3,3980.2,0.4879]
[1758904111914,1.10450898,3980.3,3980.2,0.93986]
[1758904112206,0.50130898,3980.3,3980.2,1.13496]
[1758904112405,0.50130898,3980.3,3980.2,4.34276]
[1758904112809,0.85660898,3980.3,3980.2,4.34276]
[1758904113010,0.85660898,3980.3,3980.2,4.14766]
[1758904113208,1.10450898,3980.3,3980.2,4.14766]
[1758904114304,1.10450898,3980.3,3980.2,3.6957]
[1758904114504,1.10450898,3980.3,3980.2,3.2078]
[1758904114505,1.34500898,3980.3,3980.2,3.2078]
[1758904115308,1.79695898,3980.3,3980.2,3.2078]
[1758904115813,1.60900898,3980.3,3980.2,3.4494]
[1758904116209,0.8437,3979.9,3979.8,3.21026314]
[1758904116611,0.8437,3979.9,3979.8,3.45186314]
[1758904117011,0.8437,3979.9,3979.8,3.21026314]
[1758904117319,0.8437,3979.9,3979.8,0.00246314]
[1758904117320,1.79716615,3979.9,3979.8,0.00246314]
[1758904118920,2.06116615,3979.9,3979.8,0.00246314]
[1758904119509,2.06116615,3979.9,3979.0,3.2078]
[1758904119510,0.45207,3979.3,3979.0,3.2078]
[1758904119713,0.8437,3979.1,3979.0,3.9015]
[1758904119907,0.1515,3979.5,3979.0,3.8908]
[1758904120211,0.8565157,3979.4,3979.3,1.13506]
[1758904120414,0.5012157,3979.4,3979.3,1.13506]
[1758904120614,0.3553,3979.7,3979.3,0.683]
[1758904120817,1.10416438,3979.6,3979.5,0.93994]
[1758904121204,1.10416438,3979.6,3979.5,0.4879]
[1758904121408,1.10416438,3979.6,3979.5,0.93994]
[1758904121609,1.10416438,3979.6,3979.5,1.13504]
[1758904121610,0.85626438,3979.6,3979.5,1.13504]
[1758904121919,3.2078,3980.3,3979.5,1.13504]
[1758904121920,3.8271,3980.3,3980.2,0.69356]
[1758904122107,4.57579306,3980.3,3980.2,0.4879]
[1758904122313,4.31179306,3980.3,3980.2,0.93986]
[1758904122515,4.55229306,3980.3,3980.2,0.4879]
[1758904122734,0.9952,3980.0,3979.9,0.45199]
[1758904123209,0.9952,3980.0,3979.6,0.69362]
[1758904123210,0.8437,3979.7,3979.6,0.69362]
[1758904123522,0.8437,3979.7,3979.6,0.45202]
[1758904124317,0.8437,3979.7,3979.6,0.93992]
[1758904124518,0.6032,3979.9,3979.8,0.9399]
[1758904124721,1.10414891,3979.9,3979.8,4.1477]
[1758904124920,0.6032,3979.9,3979.8,4.1477]
[1758904125918,0.1515,3980.0,3979.9,0.45199]
[1758904126223,0.6193,3980.2,3980.1,0.93987]
[1758904126424,1.3680964,3980.2,3980.1,0.4879]
[1758904127227,2.0605564,3980.2,3979.9,0.45199]
[1758904127423,0.5068,3980.0,3979.9,0.45198]
[1758904127625,0.8437,3979.9,3979.8,3.65979]
[1758904127822,0.8437,3979.9,3979.8,3.2078]
[1758904128026,0.1515,3979.5,3979.4,3.2078]
[1758904128225,0.9952,3979.5,3979.4,3.65984]
[1758904128430,0.9952,3979.5,3979.4,3.90144]
[1758904128831,1.27195,3979.4,3979.3,0.00198778]
[1758904130017,0.8199,3979.4,3979.3,0.00198778]